Cogmind - Beta 16 @@@ ROGUE MODE // 2025.11.16 @ 23:58:47 Player: chebyrekser Result: Destroyed by S-27 Virus with Autogun Performance ------------- Evolutions (5) 2500 Regions Visited (11) 2200 Robots Destroyed (96) 480 Value Destroyed (3601) 3601 Prototype IDs (21) 420 Alien Tech Used (0) 0 Bonus (1775) 1775 TOTAL SCORE: 10976 Bonus ------- High Alert Combat Kills 39 Registered with UFD 300 Met Optimus in HQ 500 Destroyed Z-Imprinter 1000 Friendly Fire -64 Cogmind --------- Core Integrity 0/1000 Matter 199/300 Energy 98/100 System Corruption 10% Temperature Cool (0) Movement Core (50) Location -5/Upper Caves Parts ------- > --- POWER (2) -------- (None) > --- PROPULSION (6) --- (None) > --- UTILITY (6) ------ (None) > --- WEAPON (3) ------- (None) > --- INVENTORY (5) ---- Large Storage Unit Zionite Biocell (600) Surveybot 24 Scanner Surveybot 24 Chip Experimental Reaction Control System Peak State ------------ > --- POWER ------------ Improved Ion Engine Angular Momentum Engine > --- PROPULSION ------- Medium Treads Armored Medium Treads Armored Medium Treads Wheel Compact Wheel Armored Wheel > --- UTILITY ---------- Experimental Heat Sink Huge Storage Unit Enhanced Optical Array Improved Signal Interpreter Layered Medium Armor Plating Hacking Suite > --- WEAPON ----------- Zionite Laser-M Hypervelocity Coil Gun Hypervelocity Coil Gun > --- INVENTORY -------- Zionite Light DM Reactor Experimental Heat Sink Experimental Heat Sink Large Storage Unit Zionite Biocell Zionite Metafield Generator Improved Sensor Array Surveybot 24 Scanner Surveybot 24 Chip Experimental Reaction Control System Hardened Medium Armor Plating Hacking Suite Mobile Refinery Mk. CCLXVII Trap Reconfigurator Phasing AFG Beamcaster Zionite Laser-M Long-range Proton Cannon Phase Cannon Subdweller Shrapnel Launcher Heavy Rocket Launcher Vortex Trap Vortex Trap Botcube GAL Module [Rating: 86] Favorites ----------- Power Angular Momentum Engine Engine Angular Momentum Engine Reactor Zionite Light DM Reactor Propulsion Light Treads Treads Light Treads Leg Carbon-fiber Leg Wheel Wheel Hover Unit Zionite Glidesys I Utility Huge Storage Unit Device Improved Sensor Array Storage Huge Storage Unit Processor Enhanced Optical Array Hackware Hacking Suite Protection Layered Medium Armor Plating Weapon Junk Cannon Energy Gun Thermic Laser Energy Cannon Phase Cannon Ballistic Gun Light Assault Rifle Ballistic Cannon Gauss Cannon Launcher Subdweller Shrapnel Launcher Special Weapon Junk Cannon Impact Weapon Heavy Mace Build | -11 -10 -10 -9 -6 -6 -6 -6 -6 -5 -5 -5 ------- Run | Yrd Mat Sub Scr Fac Low Low Zio Dee Pro Fac Upp Slots Evolved 10 | . . . . 8 . . . . . 2 . Power 1 | . . . . . . . . . . 1 . Propulsion 4 | . . . . 4 . . . . . . . Utility 4 | . . . . 3 . . . . . 1 . Weapon 1 | . . . . 1 . . . . . . . Parts Attached 87 | 7 10 2 10 12 1 8 3 22 . 12 . Power 7 | 1 1 . 1 1 1 . . 1 . 1 . Engine 6 | 1 1 . 1 1 1 . . . . 1 . Core . | . . . . . . . . . . . . Reactor 1 | . . . . . . . . 1 . . . Propulsion 24 | 2 2 . 3 4 . 3 1 4 . 5 . Treads 14 | 1 2 . 1 4 . 3 . 1 . 2 . Leg 1 | . . . . . . . . 1 . . . Wheel 7 | 1 . . 2 . . . 1 . . 3 . Hover 2 | . . . . . . . . 2 . . . Flight . | . . . . . . . . . . . . Utility 27 | 2 3 1 2 4 . . 1 12 . 2 . Device 13 | 1 1 . 1 2 . . 1 7 . . . Storage 4 | 1 2 . . . . . . 1 . . . Processor 2 | . . . . 2 . . . . . . . Hackware 2 | . . . 1 . . . . . . 1 . Protection 6 | . . 1 . . . . . 4 . 1 . Artifact . | . . . . . . . . . . . . Weapon 29 | 2 4 1 4 3 . 5 1 5 . 4 . Energy Gun 7 | . 1 . . . . 1 . 3 . 2 . Energy Cannon 4 | . . . . 2 . 2 . . . . . Ballistic Gun 8 | 2 1 . 3 . . . . . . 2 . Ballistic Cannon 2 | . . . . . . 2 . . . . . Launcher 4 | . 1 1 . 1 . . . 1 . . . Special Weapon 3 | . 1 . 1 . . . . 1 . . . Impact Weapon 1 | . . . . . . . 1 . . . . Slashing Weapon . | . . . . . . . . . . . . Piercing Weapon . | . . . . . . . . . . . . Special Melee Weapon . | . . . . . . . . . . . . Unidentified Prototypes 15 | . . . 1 . . . 1 13 . . . Parts Lost 29 | . 1 4 . 2 . 5 . 3 . 14 . Power 2 | . . . . 1 . . . . . 1 . Propulsion 12 | . . . . 1 . 4 . 2 . 5 . Utility 5 | . . 2 . . . . . 1 . 2 . Weapon 10 | . 1 2 . . . 1 . . . 6 . Highest Loss Streak 11 | . 1 2 . 1 . 5 . 2 . 11 . To Critical Strikes 1 | . . . . 1 . . . . . . . Average Backups 17 | 4 13 24 22 16 18 16 16 12 21 20 5 Power 1 | . 1 3 2 1 1 1 1 . 1 . . Propulsion 3 | 3 5 8 7 3 3 1 . . . . . Utility 7 | . 3 7 7 5 6 6 8 7 15 14 5 Weapon 4 | . 2 4 4 4 6 6 6 3 5 5 . Tool/Special . | . . . . . . . . . . . . Unused Backups 35 | . 3 . 9 . 3 2 1 6 . 7 4 Power 4 | . . . 2 . . . . 1 . 1 . Propulsion 5 | . 3 . 2 . . . . . . . . Utility 20 | . . . 4 . 2 2 . 4 . 4 4 Weapon 6 | . . . 1 . 1 . 1 1 . 2 . Tool/Special . | . . . . . . . . . . . . Average Slot Usage (%) 91 | . 99 92 83 86 93 88 90 89 100 93 . Engine 9 | . 14 14 14 5 6 6 6 6 6 6 . Treads 25 | . 27 20 13 25 26 31 33 27 26 20 . Leg 1 | . . . . . . . . 4 6 . . Wheel 6 | . . 7 14 13 13 1 4 6 6 11 . Device 7 | . 14 . 11 4 6 6 6 4 6 4 . Storage 9 | . 14 14 14 6 6 6 6 5 6 4 . Processor 7 | . . . . 10 13 13 13 13 13 10 . Hackware 3 | . . . 2 6 6 6 6 6 6 5 . Energy Gun 3 | . 7 . . . . 1 6 . 10 8 . Energy Cannon 1 | . . . . 4 6 2 . 4 6 4 . Ballistic Gun 6 | . 18 19 9 . . . . . . 1 . Special Weapon 3 | . 2 6 3 6 6 1 6 3 . . . Peak Build Rating 86 | 7 10 10 25 46 50 52 57 69 68 86 3 Average Rating 35 | 5 8 9 13 41 47 47 53 51 62 74 3 On Entrance 31 | . 7 10 7 25 45 50 52 55 59 64 3 Avg Prop Armor Cover (%) 18 | 12 12 11 14 20 23 23 27 23 6 18 . Naked Turns 35 | . . . . . . . . . . 8 27 Heaviest Build 129 | 14 90 93 100 110 116 117 112 120 115 129 . Greatest Support 108 | 20 40 40 28 80 28 108 108 88 88 88 3 Greatest Overweight (x) 11 | 1 2 9 9 3 4 4 11 11 1 5 . Average Overweight (x) 4 | . . 6 6 2 3 1 7 7 1 3 . Largest Inventory Capacity 25 | 8 25 25 25 25 25 25 25 25 25 25 5 Average Capacity 23 | 7 18 25 25 25 25 25 25 22 25 24 5 Most Carried 25 | 7 23 25 25 24 25 25 25 25 25 25 5 Average Carried 20 | 4 13 24 24 19 22 24 24 17 24 24 5 Final Capacity 25 | 8 25 25 25 25 25 25 25 25 25 5 5 Final Carried 25 | 7 23 25 25 18 25 25 25 25 25 5 5 Class Distribution -------------------- 38% | Mutant 24% | Skirmisher 13% | Scavenger-Skirmisher 7% | Derelict-Skirmisher 6% | Scavenger-Mutant 6% | Derelict-Mutant 3% | Scavenger-Tank Dominant Class ---------------- Mutant | -10/Materials Mutant | -10/Subcaves Mutant | -9/Scraptown Skirmisher | -6/Factory Skirmisher | -6/Lower Caves Derelict-Skirmisher | -6/Lower Caves Skirmisher | -6/Zion Scavenger-Mutant | -6/Deep Caves Scavenger-Skirmisher | -5/Proximity Caves Scavenger-Skirmisher | -5/Factory Mutant | -5/Upper Caves Resources | -11 -10 -10 -9 -6 -6 -6 -6 -6 -5 -5 -5 ----------- Run | Yrd Mat Sub Scr Fac Low Low Zio Dee Pro Fac Upp Matter Collected 3134 | 290 863 63 155 185 135 285 50 607 110 391 . Remotely . | . . . . . . . . . . . . Salvage Created 3728 | 97 1008 128 . 426 39 278 . 343 79 1330 . Parts 171 | 6 70 8 . 14 1 6 . 18 2 46 . Haulers Intercepted 2 | . 2 . . . . . . . . . . Recyclers Shooed 6 | . 3 . . . . . . . . 3 . Parts Field Recycled . | . . . . . . . . . . . . Retrieved Matter . | . . . . . . . . . . . . Parts Self-Destructed 10 | . . 3 . . 2 3 . . 2 . . Prevented 2 | . . . . . . 2 . . . . . Parts Restored . | . . . . . . . . . . . . Kills | -11 -10 -10 -9 -6 -6 -6 -6 -6 -5 -5 -5 ------- Run | Yrd Mat Sub Scr Fac Low Low Zio Dee Pro Fac Upp Combat Hostiles Destroyed 65 | . 17 3 . 9 . 5 . 10 1 20 . Melee 1 | . . . . . . . . . . 1 . Guns 21 | . 9 2 . . . . . . 1 9 . Cannons 8 | . . . . 1 . 4 . 2 . 1 . AOE 27 | . 8 1 . 4 . . . 6 . 8 . Classes Destroyed 23 | 2 7 1 . 3 1 1 . 3 . 5 . Worker 6 | . 3 . . 2 . . . . . 1 . Builder 6 | . 1 . . 2 . . . . . 3 . Tunneler 5 | 2 2 . . . . . . . . 1 . Hauler 2 | . 2 . . . . . . . . . . Recycler 7 | 1 3 . . . . . . . . 3 . Carrier 1 | . . . . . . . . . . 1 . Minesweeper 2 | . . . . . 1 1 . . . . . Operator 4 | . 4 . . . . . . . . . . Watcher 3 | . 3 . . . . . . . . . . Swarmer 7 | . 3 . . . . . . . . 4 . Saboteur 2 | . . . . . . . . . . 2 . Grunt 22 | . 14 . . 3 . 3 . . . 2 . Duelist 1 | . . . . . . 1 . . . . . Protector 1 | . . . . . . . . . . 1 . Sentry 4 | . . . . 2 . 1 . . 1 . . Specialist 1 | . . . . . . . . . . 1 . Hunter 6 | . . . . 2 . . . . . 4 . Programmer 7 | . . . . 2 . . . . . 5 . Heavy 1 | . . . . . . . . . . 1 . Subdweller 3 | . . 3 . . . . . . . . . Z-Technician 1 | . . . . . . . . 1 . . . Z-Light 2 | . . . . . . . . 2 . . . Assembled 5 | . . . . . . . . 5 . . . Golem 2 | . . . . . . . . 2 . . . Best Kill Streak 15 | 3 5 2 . 5 1 3 . 3 1 15 . Combat Bots Only 10 | . 4 2 . 4 . 3 . 3 1 10 . Max Kills in Single Turn 8 | 1 3 1 . 3 1 1 . 2 1 8 . Gunslinging . | . . . . . . . . . . . . Exploded 4 | . 2 1 . 2 . . . 2 . 4 . Melee 1 | . . . . . . . . . . 1 . Uniques/NPCs Destroyed 1 | . . . . . . . . 1 . . . Z-Imprinter (-6/Deep Caves) Combat | -11 -10 -10 -9 -6 -6 -6 -6 -6 -5 -5 -5 -------- Run | Yrd Mat Sub Scr Fac Low Low Zio Dee Pro Fac Upp Hostile Shots Fired 465 | . 67 21 . 94 . 52 . 31 6 177 17 Missed 142 | . 20 5 . 32 . 16 . 13 2 49 5 Hits 323 | . 47 16 . 62 . 36 . 18 4 128 12 Melee 4 | . . . . . . 3 . . . 1 . Projectile 319 | . 47 16 . 62 . 33 . 18 4 127 12 AOE 3 | . . 3 . . . . . . . . . Critical Strikes 12 | . 1 1 . 2 . 2 . . . 6 . Damage Taken 6611 | . 587 549 . 1023 . 573 . 726 94 2870 189 Core 1440 | . 108 137 . 104 . 45 . 35 . 822 189 Absorbed by Shields . | . . . . . . . . . . . . Regen/Repaired (Parts) 58 | . 58 . . . . . . . . . . Core Remaining (%) 60 | 100 . . 2 . . . . . 78 . . Volleys Fired 385 | 13 144 16 . 47 12 48 5 49 3 48 . Largest 3 | 2 2 2 . 1 1 2 1 2 3 3 . Hottest 233 | 40 100 100 . 85 85 125 . 125 233 233 . Shots Fired 577 | 26 234 27 . 47 12 60 5 54 9 103 . Gun 320 | 26 181 22 . . . 7 . . 6 78 . Cannon 139 | . . . . 22 12 44 . 36 3 22 . Launcher 30 | . 13 3 . 4 . . . 7 . 3 . Special 88 | . 40 2 . 21 . 9 5 11 . . . Kinetic 276 | 26 154 25 . . . 20 . 14 . 37 . Thermal 230 | . 67 2 . 22 12 31 . 22 9 65 . Explosive 25 | . 13 . . 4 . . . 7 . 1 . Electromagnetic . | . . . . . . . . . . . . Impact 44 | . . . . 21 . 9 5 9 . . . Robot Hit Streak 20 | 11 13 5 . 7 2 11 . 8 10 20 . Robot Miss Streak 4 | 3 3 2 . 2 4 4 . 4 . 3 . Penetration Max 1 | . . . . . . . . . . 1 . Secondary Targets 3 | . 1 1 . . . . . . . 1 . Max Gunslinging Chain 1 | . 1 1 . . . . . . . 1 . Shots Hit Robots 316 | 18 119 17 . 25 6 36 . 20 7 68 . Core Hits 181 | 5 62 6 . 8 2 18 . 18 3 57 2 Critical Kills 5 | . 1 . . 1 . . . . . 3 . Critical Parts Destroyed 14 | . 1 . . 4 . 1 . . . 8 . Critical Strikes 24 | . 2 1 . 5 . 2 . 1 . 13 . Burn 3 | . . . . . . 1 . . . 2 . Destroy 14 | . 2 1 . . . . . . . 11 . Blast 1 | . . . . . . . . 1 . . . Smash 6 | . . . . 5 . 1 . . . . . Melee Attacks . | . . . . . . . . . . . . Impact . | . . . . . . . . . . . . Slashing . | . . . . . . . . . . . . Piercing . | . . . . . . . . . . . . Sneak Attacks . | . . . . . . . . . . . . Combat Hostiles . | . . . . . . . . . . . . Follow-up Attacks . | . . . . . . . . . . . . Damage Inflicted 11476 | 172 1928 294 . 1992 185 1187 . 1542 189 3980 7 Guns 3003 | 172 1218 151 . . . 90 . . 129 1243 . Cannons 1967 | . . . . 188 185 723 . 438 60 373 . Explosions 4701 | . 710 143 . 761 . . . 740 . 2347 . Melee . | . . . . . . . . . . . . Ramming 24 | . . . . . . . . . . 17 7 Kinetic 3044 | 172 1036 294 . . . 386 . 196 . 960 . Thermal 4784 | . 182 . . 602 185 427 . 242 189 2957 . Explosive 1843 | . 710 . . 347 . . . 740 . 46 . Electromagnetic . | . . . . . . . . . . . . Impact 1781 | . . . . 1043 . 374 . 364 . . . Slashing . | . . . . . . . . . . . . Piercing . | . . . . . . . . . . . . Highest Corruption 10 | . . . . 1 1 1 1 . . 10 10 Average Corruption 1 | . . . . 1 1 1 1 . . 6 10 Corruption Purged . | . . . . . . . . . . . . Corruption Blocked . | . . . . . . . . . . . . Effects 31 | . . . . 2 3 16 . . . 9 1 Message Errors 5 | . . . . . . 4 . . . 1 . Matter Fused 9 | . . . . 1 1 4 . . . 3 . Heat Flow Errors 3 | . . . . . . 2 . . . 1 . Energy Discharges 5 | . . . . 1 1 2 . . . 1 . Data Loss (minor) 3 | . . . . . . 2 . . . . 1 Data Loss (major) 3 | . . . . . 1 1 . . . 1 . Misfires 2 | . . . . . . 1 . . . 1 . Weapon Failures 1 | . . . . . . . . . . 1 . Overload Shots . | . . . . . . . . . . . . Overflow Damage 1215 | . 25 . . 591 21 104 . 242 . 232 . Projectiles 722 | . . . . 373 21 104 . 223 . 1 . Explosions 493 | . 25 . . 218 . . . 19 . 231 . Melee . | . . . . . . . . . . . . Knockbacks 18 | . . . . 5 . 10 . 3 . . . Impact 10 | . . . . 5 . 2 . 3 . . . Kinetic 8 | . . . . . . 8 . . . . . Secondary . | . . . . . . . . . . . . Self-Inflicted Damage 185 | . 35 . . 147 . . . . . . 3 Shots 5 | . 2 . . 3 . . . . . . . Rammed 6 | . . . . . . . . . . 3 3 Targets Rammed 6 | . . . . . . . . . . 3 3 Kicked . | . . . . . . . . . . . . Crushed . | . . . . . . . . . . . . Highest Temperature 313 | . 124 . . 60 88 208 . 78 161 313 . Average Temperature 56 | . 32 . . 17 36 70 . 30 80 120 . Received Heat Transfer 927 | . 297 . . 159 . 219 . 135 27 90 . Siege Activations . | . . . . . . . . . . . . Martial Activations . | . . . . . . . . . . . . Shielding Activations . | . . . . . . . . . . . . Robots Disrupted . | . . . . . . . . . . . . Combat Hostiles . | . . . . . . . . . . . . Robots Corrupted 7 | . . . . 4 . 1 . 2 . . . Combat Hostiles 7 | . . . . 4 . 1 . 2 . . . Parts Fried 6 | . . . . 5 . 1 . . . . . Impact Corruptions 14 | . . . . 9 . 2 . 3 . . . Robots Melted 1 | . . . . . . . . . . 1 . Combat Hostiles 1 | . . . . . . . . . . 1 . Parts Melted 10 | . . . . . 1 . . . . 9 . Heat Transferred 5182 | . 400 . . 472 222 757 . 184 259 2888 . Parts Sabotaged 4 | . . . . . . . . . . 4 . Parts Stolen . | . . . . . . . . . . . . Parts Stripped . | . . . . . . . . . . . . Power Chain Reactions . | . . . . . . . . . . . . Alert | -11 -10 -10 -9 -6 -6 -6 -6 -6 -5 -5 -5 ------- Run | Yrd Mat Sub Scr Fac Low Low Zio Dee Pro Fac Upp Maximum Alert Level 2 | . . . . 1 . . . . . 2 . Low Security (%) 97 | 100 100 . . 86 . . . . . 96 . Level 1 1 | . . . . 13 . . . . . . . Level 2 . | . . . . . . . . . . 2 . Level 3 . | . . . . . . . . . . . . Level 4 . | . . . . . . . . . . . . Level 5 . | . . . . . . . . . . . . High Security . | . . . . . . . . . . . . Max Security . | . . . . . . . . . . . . Peak Influence 447 | 10 172 . . 280 . . . . . 447 . Initial . | . . . . . . . . . . . . Average 38 | 1 37 . . 43 . . . . . 47 . Influence Increases 2100 | 15 757 . . 464 5 120 . . 20 689 30 Destroy 0b10 Robot/C 1040 | . 340 . . 180 . 100 . . 20 400 . Destroy 0b10 Robot/NC 185 | 15 90 . . 20 5 10 . . . 45 . Destroy Leader 190 | . 90 . . 50 . 10 . . . 40 . Successful Hack 74 | . 44 . . 30 . . . . . . . Select Force Hacks 30 | . 30 . . . . . . . . . . Disable Machine 195 | . 45 . . 75 . . . . . 75 . Destroy Structure 251 | . 73 . . 94 . . . . . 84 . Lose Combat Pursuer 135 | . 45 . . 15 . . . . . 45 30 Influence Decreases 1833 | 15 728 29 . 193 276 120 . . 20 296 156 Entered New Map 262 | . . 15 . . 101 . . . . . 146 Time Decay 1221 | 15 568 4 . 183 175 90 . . 20 156 10 Lost Part 200 | . 10 10 . 10 . 30 . . . 140 . Purge Threat 150 | . 150 . . . . . . . . . . Squads Dispatched 16 | . 6 . . 5 . . . . . 5 . Investigation 5 | . 3 . . . . . . . . 2 . Extermination 3 | . . . . 2 . . . . . 1 . Reinforcement 8 | . 3 . . 3 . . . . . 2 . Assault . | . . . . . . . . . . . . Garrison . | . . . . . . . . . . . . Intercept . | . . . . . . . . . . . . Searches Triggered . | . . . . . . . . . . . . Construction Impeded 1 | . . . . . . . . . . 1 . Haulers Reinforced . | . . . . . . . . . . . . Active Scanning Responses . | . . . . . . . . . . . . Cargo Convoy Interrupts 1 | . . . . . . . . . . 1 . Stealth | -11 -10 -10 -9 -6 -6 -6 -6 -6 -5 -5 -5 --------- Run | Yrd Mat Sub Scr Fac Low Low Zio Dee Pro Fac Upp Distress Signals 6 | . 3 . . 2 . . . . . 1 . Communications Jammed . | . . . . . . . . . . . . Distress Signals . | . . . . . . . . . . . . Times Spotted 108 | . 39 3 . 14 . 5 . 9 1 31 6 Peak Tracking Total 11 | . 4 2 . 4 . 4 . 3 1 11 5 Tactical Retreats 7 | . 2 . . 1 . . . . . 3 1 Traps | -11 -10 -10 -9 -6 -6 -6 -6 -6 -5 -5 -5 ------- Run | Yrd Mat Sub Scr Fac Low Low Zio Dee Pro Fac Upp Traps Triggered 5 | . 2 2 . . . . . . . 1 . Indirectly . | . . . . . . . . . . . . Trap Hack Attempts . | . . . . . . . . . . . . Triggered . | . . . . . . . . . . . . Disarmed . | . . . . . . . . . . . . Reprogrammed . | . . . . . . . . . . . . Reused 3 | . . . . . . . . 3 . . . Traps Extracted . | . . . . . . . . . . . . Installed 5 | . . . . . . . . 5 . . . Triggered . | . . . . . . . . . . . . Most Traps Carried 7 | . . . 2 2 6 7 7 7 2 2 . Machines | -11 -10 -10 -9 -6 -6 -6 -6 -6 -5 -5 -5 ---------- Run | Yrd Mat Sub Scr Fac Low Low Zio Dee Pro Fac Upp Machines Disabled 21 | . 4 . . 5 . . 3 4 . 5 . Max in Single Turn 4 | . 1 . . 2 . . 1 1 . 4 . Machines Repaired . | . . . . . . . . . . . . Machines Dismantled . | . . . . . . . . . . . . Machines Sabotaged . | . . . . . . . . . . . . Overloaded Fab Kills . | . . . . . . . . . . . . Hacking | -11 -10 -10 -9 -6 -6 -6 -6 -6 -5 -5 -5 --------- Run | Yrd Mat Sub Scr Fac Low Low Zio Dee Pro Fac Upp Machines Accessed 24 | . 9 1 5 3 . . 1 . . 5 . Terminals 12 | . 6 . . 3 . . . . . 3 . Fabricators . | . . . . . . . . . . . . Repair Stations 1 | . 1 . . . . . . . . . . Recycling Units 3 | . 2 . . . . . . . . 1 . Scanalyzers 1 | . . . . . . . . . . 1 . Garrison Access . | . . . . . . . . . . . . Total Hacks 75 | . 27 5 15 9 . . 3 . . 16 . Successful 48 | . 17 5 15 4 . . 3 . . 4 . Failed 26 | . 10 . . 5 . . . . . 11 . Catastrophic . | . . . . . . . . . . . . Database Lockouts 1 | . . . . . . . . . . 1 . Manual 36 | . 18 . . 6 . . . . . 12 . Terminals 43 | . 22 . . 9 . . . . . 12 . Fabricators . | . . . . . . . . . . . . Repair Stations 2 | . 2 . . . . . . . . . . Recycling Units 5 | . 3 . . . . . . . . 2 . Scanalyzers 2 | . . . . . . . . . . 2 . Garrison Access . | . . . . . . . . . . . . Terminal Hacks 31 | . 5 5 15 2 . . 3 . . 1 . Record 15 | . . 5 10 . . . . . . . . Part Schematic 4 | . . . . . . . 3 . . 1 . Robot Analysis 7 | . 3 . 4 . . . . . . . . Branch Access Points 1 | . . . . 1 . . . . . . . Terminal Index 1 | . . . . 1 . . . . . . . Alert Level 1 | . 1 . . . . . . . . . . Unreport Threat 1 | . 1 . . . . . . . . . . Proto ID Catalog 1 | . . . 1 . . . . . . . . Fabricator Hacks . | . . . . . . . . . . . . Repair Station Hacks 2 | . 2 . . . . . . . . . . Scan Component 1 | . 1 . . . . . . . . . . Repair 1 | . 1 . . . . . . . . . . Recycling Unit Hacks 2 | . 1 . . . . . . . . 1 . Retrieve Components 2 | . 1 . . . . . . . . 1 . Scanalyzer . | . . . . . . . . . . . . Garrison Access Hacks . | . . . . . . . . . . . . Unauthorized Hacks 13 | . 9 . . 2 . . . . . 2 . Terminals 12 | . 8 . . 2 . . . . . 2 . Assimilate 1 | . 1 . . . . . . . . . . Botnet 6 | . 2 . . 2 . . . . . 2 . Operators 1 | . 1 . . . . . . . . . . Skim 4 | . 4 . . . . . . . . . . Fabricators . | . . . . . . . . . . . . Repair Stations . | . . . . . . . . . . . . Recycling Units 1 | . 1 . . . . . . . . . . Tunnel 1 | . 1 . . . . . . . . . . Scanalyzers . | . . . . . . . . . . . . Garrison Access . | . . . . . . . . . . . . Data Cores Recovered 1 | . 1 . . . . . . . . . . Used . | . . . . . . . . . . . . Hacking Detections 15 | . 7 . . 3 . . . . . 5 . Full Trace Events 1 | . . . . . . . . . . 1 . Feedback Events . | . . . . . . . . . . . . Feedback Blocked . | . . . . . . . . . . . . Robot Schematics Acquired . | . . . . . . . . . . . . Robots Built . | . . . . . . . . . . . . Authchips . | . . . . . . . . . . . . Time . | . . . . . . . . . . . . Total Robot Build Rating . | . . . . . . . . . . . . Part Schematics Acquired 4 | . . . . . . . 3 . . 1 . Parts Built . | . . . . . . . . . . . . Authchips . | . . . . . . . . . . . . Time . | . . . . . . . . . . . . Total Part Build Rating . | . . . . . . . . . . . . Part Studies Acquired . | . . . . . . . . . . . . Parts Repaired 1 | . 1 . . . . . . . . . . Time 13 | . 13 . . . . . . . . . . Parts Recycled . | . . . . . . . . . . . . Recycled Matter . | . . . . . . . . . . . . Retrieved Matter . | . . . . . . . . . . . . Retrieved Components 10 | . 10 . . . . . . . . . . Parts Scanalyzed . | . . . . . . . . . . . . Part Schematics Acquired . | . . . . . . . . . . . . Parts Damaged . | . . . . . . . . . . . . Bothacking | -11 -10 -10 -9 -6 -6 -6 -6 -6 -5 -5 -5 ------------ Run | Yrd Mat Sub Scr Fac Low Low Zio Dee Pro Fac Upp Used RIF Installer . | . . . . . . . . . . . . Robots Hacked . | . . . . . . . . . . . . Non-combat . | . . . . . . . . . . . . Combat . | . . . . . . . . . . . . Robot Hacks Applied . | . . . . . . . . . . . . Relay Couplers Released . | . . . . . . . . . . . . Fabnet Peak Effective % . | . . . . . . . . . . . . Robots Rewired . | . . . . . . . . . . . . Allies Hacked . | . . . . . . . . . . . . Hacks Repelled . | . . . . . . . . . . . . Allies | -11 -10 -10 -9 -6 -6 -6 -6 -6 -5 -5 -5 -------- Run | Yrd Mat Sub Scr Fac Low Low Zio Dee Pro Fac Upp Total Allies 5 | . . . . . . . 5 . . . . Largest Group 5 | . . . . . . . 5 5 . . . Highest-Rated Group 127 | . . . . . . . 127 127 . . . Highest-Rated Ally 31 | . . . . . . . 31 31 . . . Total Orders . | . . . . . . . . . . . . Ally Attacks 19 | . . . . . . . . 19 . . . Total Damage 1497 | . . . . . . . . 1497 . . . Kills 5 | . . . . . . . . 5 . . . Allies Corrupted . | . . . . . . . . . . . . Allies Melted . | . . . . . . . . . . . . Intel | -11 -10 -10 -9 -6 -6 -6 -6 -6 -5 -5 -5 ------- Run | Yrd Mat Sub Scr Fac Low Low Zio Dee Pro Fac Upp Active Infowar (turns) 19713 | 41 4017 16 3224 685 891 1959 2956 3509 1395 1020 . Optics 12414 | . . . . 684 891 1959 2956 3509 1395 1020 . Sensors 9730 | . . . . 293 872 1798 2954 1620 1373 820 . Seismic 7355 | 41 4017 16 3224 57 . . . . . . . Robot Analysis Total 7 | . 3 . 4 . . . . . . . . Derelict Logs Recovered 10 | . . 1 3 . 3 1 . . 1 . 1 Drone Launches . | . . . . . . . . . . . . Drone Recoveries . | . . . . . . . . . . . . Exploration | -11 -10 -10 -9 -6 -6 -6 -6 -6 -5 -5 -5 ------------- Run | Yrd Mat Sub Scr Fac Low Low Zio Dee Pro Fac Upp Turns Passed 21652 | 115 4017 964 4101 689 891 1959 2956 3509 1395 1029 27 Spaces Moved 9394 | 62 1315 375 2153 340 597 805 1204 1498 573 426 46 Core 59 | 1 . . . . . . . . . 12 46 Treads 3438 | 7 1312 118 . 46 . 677 382 254 573 69 . Legs . | . . . . . . . . . . . . Wheels 5897 | 54 3 257 2153 294 597 128 822 1244 . 345 . Hover . | . . . . . . . . . . . . Flight . | . . . . . . . . . . . . Fastest Speed 50 | 50 95 200 140 140 140 155 160 110 240 50 50 Average Speed 206 | 98 227 241 187 153 142 226 243 211 240 164 50 Slowest Speed 320 | 160 320 320 215 240 155 240 245 320 240 246 50 Overloaded Moves . | . . . . . . . . . . . . Propulsion Burnouts . | . . . . . . . . . . . . Robots Hopped 1 | . . . 1 . . . . . . . . Potential Cave-ins . | . . . . . . . . . . . . Cave-ins Triggered . | . . . . . . . . . . . . Exploration Rate (%) 53 | 4 98 23 86 16 68 85 86 81 68 15 8 Regions Visited 11 Branch Regions 8 Pre-discovered Areas 8 | . 1 1 3 . . . 3 . . . . Known Exits Taken 7 | . . . . 1 1 1 1 1 1 1 . Unknown Exits Taken 4 | 1 1 1 1 . . . . . . . . Scrap Searched 20 | . . 1 4 . 3 4 3 . 5 . . Spaces Dug 58 | . 37 . . 8 . 4 . 6 . 3 . Terrain Destroyed 408 | . 83 34 . 116 4 21 . 98 2 50 . Melee . | . . . . . . . . . . . . Projectile 109 | . 34 . . 18 4 21 . 17 2 13 . AOE 294 | . 49 34 . 98 . . . 81 . 32 . Terrain Rammed . | . . . . . . . . . . . . Walls Destroyed . | . . . . . . . . . . . . Machines Disabled . | . . . . . . . . . . . . Actions | -11 -10 -10 -9 -6 -6 -6 -6 -6 -5 -5 -5 --------- Run | Yrd Mat Sub Scr Fac Low Low Zio Dee Pro Fac Upp Total 11025 | 88 2023 404 2225 457 628 884 1228 1800 586 652 50 Wait 730 | . 493 2 5 48 1 1 2 48 6 123 1 Move 9381 | 61 1314 374 2150 339 596 804 1203 1497 572 425 46 Hop 1 | . . . 1 . . . . . . . . Pick Up 170 | 7 21 4 30 2 10 11 6 69 1 9 . Fast Attach 30 | 7 1 . 1 2 . . 2 12 . 5 . Attach 42 | . 1 2 4 11 . 8 1 8 . 7 . Detach 7 | . . 1 . 2 . . . 4 . . . Swap 124 | . 42 4 5 5 5 6 2 32 3 20 . Drop 144 | . 7 1 29 1 4 6 7 76 1 12 . Fire 385 | 13 144 16 . 47 12 48 5 49 3 48 . Melee . | . . . . . . . . . . . . Ram 3 | . . . . . . . . . . . 3 Kick . | . . . . . . . . . . . . Crush 3 | . . . . . . . . . . 3 . Escape Stasis . | . . . . . . . . . . . . Rewire . | . . . . . . . . . . . . Trap 5 | . . . . . . . . 5 . . . Miscellaneous . | . . . . . . . . . . . . Route ------- -11/Scrapyard -10/Materials (discovered 6 exits: [*Mat x3] / [*Min x2] / *Sub) -10/Subcaves (discovered 2 exits: [*Mat] / *Scr) -9/Scraptown (discovered 2 exits: *Fac x2) -6/Factory (discovered 2 exits: *Low x2) -6/Lower Caves (discovered 2 exits: *Low / *Zio) -6/Lower Caves (discovered 2 exits: *Fac / *Zio) -6/Zion (discovered 2 exits: *Dee / [*Pro]) -6/Deep Caves -5/Proximity Caves -5/Factory -5/Upper Caves (discovered 1 exit: Upp) History --------- Turn | Location | Event 28 | -11/Scrapyard | Discovered new exit (range 13) 116 | -11/Scrapyard | Entered Materials 210 | -10/Materials | Discovered new exit (range 16) 322 | -10/Materials | Build established: Mutant 511 | -10/Materials | Discovered new exit (range 14) 1634 | -10/Materials | Discovered new exit (range 8) 2080 | -10/Materials | Discovered new exit (range 9) 2845 | -10/Materials | Discovered new exit (range 16) 2943 | -10/Materials | Repaired Lgt. Assault Rifle 2983 | -10/Materials | Discovered new exit (range 10) 4133 | -10/Materials | Entered Subcaves 4134 | -10/Subcaves | Approached by a straggling Scientist 4151 | -10/Subcaves | Core integrity fell below 50% 4244 | -10/Subcaves | Learned location of Zion (-6) 4337 | -10/Subcaves | Discovered new exit (range 15) 4354 | -10/Subcaves | Shifting Twisted Machinery released Sub. Shrapnel Launcher 4679 | -10/Subcaves | Scientist uncovered a shortcut to Scraptown 4725 | -10/Subcaves | Core integrity fell below 20% 4811 | -10/Subcaves | A swath of the cavern ceiling suddenly collapsed 4956 | -10/Subcaves | Visited Clippyterm 4962 | -10/Subcaves | Learned Research machine intel 4962 | -10/Subcaves | Learned Factory emergency access door positions 5097 | -10/Subcaves | Entered Scraptown 5241 | -9/Scraptown | Heard Great Nut preacher, LISTEN AND RECITE! 5303 | -9/Scraptown | Visited Junk Repository 5359 | -9/Scraptown | Visited SPCMW 5413 | -9/Scraptown | Visited Assassins FH 5463 | -9/Scraptown | Visited Cyclists 5487 | -9/Scraptown | Visited Junk Repository 5529 | -9/Scraptown | Visited Observation Area 5659 | -9/Scraptown | Scanned Subdweller tech in exchange for log data 5665 | -9/Scraptown | Learned location of 2 exits from Upper Caves 5667 | -9/Scraptown | Learned location of 1 exit from Factory 5691 | -9/Scraptown | Discovered new exit (range 11) 6153 | -9/Scraptown | Visited UFD Registry 6153 | -9/Scraptown | Registered with UFD as "Smoothgunner" 6221 | -9/Scraptown | Visited Junk Cannon Lab 6257 | -9/Scraptown | Visited Science Guys 6297 | -9/Scraptown | Visited Scrap Suit Storage 6327 | -9/Scraptown | Visited Scrapoid Research Area 6353 | -9/Scraptown | Visited DA-N13 Charitable Foundation 6361 | -9/Scraptown | Found DCF Scrap (31 items) 6427 | -9/Scraptown | Visited Botcube Research 6525 | -9/Scraptown | Visited Analyses Database 6593 | -9/Scraptown | Visited LU-1G1's Boring Crew 6629 | -9/Scraptown | Visited Chapter 10 6780 | -9/Scraptown | Found Botcube 7154 | -9/Scraptown | Found Prototype Special Weapon 7296 | -9/Scraptown | Build established: Derelict-Mutant 7368 | -9/Scraptown | Entered Cyclist Reading Room 7515 | -9/Scraptown | Guru changed UFD alias to "Monounit" 8283 | -9/Scraptown | Identified Junk Cannon 8578 | -9/Scraptown | Build established: Mutant 9121 | -9/Scraptown | Met Optimus 9121 | -9/Scraptown | Accepted into 0bPrime 9192 | -9/Scraptown | Discovered new exit (range 5) 9198 | -9/Scraptown | Entered Factory 9198 | -6/Factory | Evolved 8 slots: Propulsion x4, Utility x3, Weapon x1 9199 | -6/Factory | Identified exit to Lower Caves 9664 | -6/Factory | Build established: Skirmisher 9887 | -6/Factory | Entered Lower Caves 10079 | -6/Lower Caves | Learned Factory stockpile data 10083 | -6/Lower Caves | Entered a destroyed Warlord outpost 10136 | -6/Lower Caves | A Derelict revealed a hidden shortcut to a safe place 10164 | -6/Lower Caves | Learned Factory garrison access intel 10180 | -6/Lower Caves | Learned Factory stockpile data 10316 | -6/Lower Caves | Discovered new exit (range 10) 10327 | -6/Lower Caves | Identified exit to Lower Caves 10704 | -6/Lower Caves | Identified exit to Zion 10778 | -6/Lower Caves | Entered another Lower Caves area 10788 | -6/Lower Caves | Discovered new exit (range 12) 11056 | -6/Lower Caves | Lost 5 parts (4n1w) 11116 | -6/Lower Caves | Encountered a Warlord checkpoint 11382 | -6/Lower Caves | Build established: Derelict-Skirmisher 11610 | -6/Lower Caves | Learned 4 Factory zone layouts 12369 | -6/Lower Caves | Attracted the attention of an 0b10 checkpoint 12562 | -6/Lower Caves | Discovered exit to Zion (range 6) 12645 | -6/Lower Caves | Build established: Skirmisher 12737 | -6/Lower Caves | Entered Zion 12829 | -6/Zion | System corruption cleaned by Quarantine Array 12906 | -6/Zion | Discovered new exit (range 21) 13342 | -6/Zion | Learned location of Armory (-4) 13397 | -6/Zion | Learned Factory emergency access door positions 13660 | -6/Zion | Found Prototype Device 13774 | -6/Zion | Learned location of Warlord (-5) 14257 | -6/Zion | Found Prototype Device 14258 | -6/Zion | Identified Mobile Refinery Mk. CCLXVII 14501 | -6/Zion | Gained Derelict followers 15443 | -6/Zion | Found GAL Module 15671 | -6/Zion | Discovered new exit (range 3) 15671 | -6/Zion | Saw the warning signs outside the Deep Caves entrance 15679 | -6/Zion | Identified exit to Deep Caves 15693 | -6/Zion | Entered Deep Caves 15693 | -6/Deep Caves | Accompanied by 5 allies 16057 | -6/Deep Caves | Z-Facility disabled 16260 | -6/Deep Caves | Attacked by Z-Imprinter 16275 | -6/Deep Caves | Attached CPS modules to Z-Imprinter. 16305 | -6/Deep Caves | Destroyed Z-Imprinter 16319 | -6/Deep Caves | Lost 5 allies 16394 | -6/Deep Caves | Identified Phasing AFG 16415 | -6/Deep Caves | Found Prototype Device 16416 | -6/Deep Caves | Identified Zio. Metafield Generator 16476 | -6/Deep Caves | Found Prototype Protection 16476 | -6/Deep Caves | Identified Zio. Weapon Casing 16850 | -6/Deep Caves | Discovered new exit (range 6) 16966 | -6/Deep Caves | Identified exit to Proximity Caves 17271 | -6/Deep Caves | Build established: Scavenger-Mutant 17337 | -6/Deep Caves | Found Surveybot 24 Scanner 17340 | -6/Deep Caves | Found Surveybot 24 Chip 18140 | -6/Deep Caves | Spotted AG-08004 18204 | -6/Deep Caves | Destroyed AG-08004 18356 | -6/Deep Caves | Spotted AG-21377 18406 | -6/Deep Caves | Destroyed AG-21377 18662 | -6/Deep Caves | Build established: Scavenger-Tank 18795 | -6/Deep Caves | Found Prototype Device 18796 | -6/Deep Caves | Identified Trap Reconfigurator 19080 | -6/Deep Caves | Build established: Scavenger-Skirmisher 19202 | -6/Deep Caves | Entered Proximity Caves 19399 | -5/Proximity Caves | Learned Factory security intel 19644 | -5/Proximity Caves | Attracted the attention of an 0b10 checkpoint 19685 | -5/Proximity Caves | Discovered new exit (range 19) 19735 | -5/Proximity Caves | Identified exit to Factory 20597 | -5/Proximity Caves | Entered Factory 20597 | -5/Factory | Evolved 2 slots: Power x1, Utility x1 20602 | -5/Factory | Loaded intel: 4 garrison access locations 21052 | -5/Factory | Discovered new exit (range 17) 21077 | -5/Factory | Identified exit to Upper Caves 21175 | -5/Factory | Central database locked down 21222 | -5/Factory | Build established: Derelict-Skirmisher 21591 | -5/Factory | Cargo convoy interrupted 21610 | -5/Factory | System corruption reached 10% 21617 | -5/Factory | Released all parts (6) 21621 | -5/Factory | Core integrity fell below 50% 21625 | -5/Factory | Core integrity fell below 20% 21626 | -5/Factory | Entered Upper Caves 21627 | -5/Upper Caves | Identified exit to Upper Caves 21633 | -5/Upper Caves | Destroyed 10 combat bots 21651 | -5/Upper Caves | Lost 11 parts (1p4n2u4w) 21653 | -5/Upper Caves | Destroyed by S-27 Virus with Autogun Last Messages --------------- 21619_ U-05 Engineer lays Concrete. 21619_ R-10 Processor collects Imp. Remote Datajack. 21620_ Penetrated by Slug. 21620_ Hacking Suite destroyed. 21620_ Acquired Surveybot 24 Scanner. 21621_ U-05 Engineer lays Concrete. 21621_ Knocked back. 21621_ Penetrated by Slug. 21621_ Acquired 4 matter. 21622_ U-05 Engineer lays Concrete. 21623_ Knocked back. 21624_ U-05 Engineer lays Concrete. LOCATION=UPPER CAVES GOAL=ESCAPE Loading 1 Upper Caves exit... 21630_ Acquired derelict log, extracted data. Exit location confirmed. 21642_ System corrupted: Component data lost. 21644_ Slammed into S-27 Virus. Map ----- +----------------------------------------------------+ | ?????????????????????????????????????????????????? | | ?????????????????????????????????????????????????? | | ?????????????????????????????????????????????????? | | ?????????????????????????????????????????????????? | | ???????????????????????????? ???????????????????? | | ????????????????????????? ??????????????????? | | ??????????????????????? ???######????????? | | ????????????????????? ??? ????????? | | ????????????????????? ? ????????? | | ????????????????????# ? ?????????? | | ????????????????????# "" ?????????? | | ????????????????????? "" ? ??????? | | ??????????????????????# "" ??????? | | ???????????????????????# "" " ???????? | | ??????????????????????## "" "" #????????? | | ??????????????????????# " """ #????????? | | ??????????????????????# " #?? ???? | | ??????????????????????# "" # #? | | ??????????????????????# ## " ??? | | ?????????????????????## ## " #?????? | | ?????????????????????# ## ####?????? | | ?????????????????????# s #????????? | | ????????????????????## s### #########????????? | | ???????????????????## #?#####??#######???????? | | ??????????????????## ###??????# ????????? | | ??????????????????# @ #??????# # #?????????? | | ?????????????????# ## ######## ##????????? | | ?????????????????# ### #????????? | | ????????????????# #?## # #????????? | | ????????????????# ##??############ #??????????? | | ????????????????# ???????????????## #?????????? | | ????????????????# #????????????????####?????????? | | ????????????????# ??????????????????????????????? | | ????????????????# ??????????????????????????????? | | ????????????????# ??????????????????????????????? | | ????????????????# ???????????????????????????????? | | ???????????????? ???????????????????????????????? | | ???????????????? ???????????????????????????????? | | ???????????????? ???????????????????????????????? | | ???????????????? ????????????????????????????????? | | ?????????????????????????????????????????????????? | | ?????????????????????????????????????????????????? | | ?????????????????????????????????????????????????? | | ?????????????????????????????????????????????????? | | ?????????????????????????????????????????????????? | | ?????????????????????????????????????????????????? | | ?????????????????????????????????????????????????? | | ?????????????????????????????????????????????????? | | ?????????????????????????????????????????????????? | | ?????????????????????????????????????????????????? | +----------------------------------------------------+ Best States ------------- Heat Dissipation 66 Energy Generation 25 Energy Capacity 900 Matter Stores 300 Matter Capacity 300 Sight Range 22 Robot Scan Range 15 Terrain Scan Density 10 Armor Coverage 550 Weapon Shielding 100 Evasion (%) 50 Recoil Reduction 5 Offensive Hacking 10 Item Schematics ----------------- Flamer | -6/Zion | Free Enh. Flamer | -6/Zion | Free Riot Gun | -6/Zion | Free Imp. Utility Shielding | -5/Factory | Hacked Robot Schematics ------------------ None Fabricated ------------ Nothing Repaired ---------- Lgt. Assault Rifle | 27% | -10/Materials Studied --------- None Alien Tech Used ----------------- None Achievements -------------- None Challenges ------------ None Game ------ Seed ImpactConceptMultirail Manual? 0 Play Time 01:45:19 Cumulative 275.8 hours Start 2025.11.15 @ 23:47:06 End 2025.11.16 @ 23:58:47 Sessions 2 Manual Loads 0 Difficulty Rogue Special Mode None Game No. 78 Rogue 72 Adventurer 0 Explorer 6 Win Type - Total 15 Types 6/1/2/1/1/0/2/1/0/1 Lore% 82 Gallery% 75 Achievement% 64 Wizard Run 0 Options --------- Layout 1 ASCII 0 Keyboard 0 Movement Mouse Keybinds 0 Fullscreen 2 Font 24/Smallcaps Map View 50x35 Zoom Use 0% Tactical HUD 1 Map Filters NONE Filters NONE Steam 1 RUN: e4035f48-8e23-4c73-9cec-42910d6d7d9c